Workbook

Sheet Instructions
A1: CONTRIBUTION MARGIN MODEL
A3: Cadence & Compass | Disciplined execution. Confident direction.
A5: HOW TO USE THIS MODEL
A6: 1. Start on Inputs and update the blue/yellow assumption cells.
A7: 2. Build each revenue stream on the Revenue tab using volume, rate, and any other revenue.
A8: 3. Enter employees/roles on Headcount. Classify each as Direct or Indirect / Admin. Only Direct labor flows into contribution margin.
A9: 4. Enter non-labor direct/variable costs on Variable Costs. Choose a driver: Per Unit, % of Revenue, or Manual Amount.
A10: 5. Review Summary for contribution margin, margin %, contribution per unit, and break-even volume.
A11: 6. Use Scenario Analysis to test directional changes in volume, pricing, direct labor productivity, and variable cost inflation.
A14: WHAT BELONGS IN CONTRIBUTION MARGIN
A15: Include | E15: Exclude
A16: • Direct labor used to deliver the service | E16: • Executive / corporate salaries
A17: • Payroll taxes and benefits on direct labor | E17: • General administrative headcount
A18: • Supplies and consumables | E18: • Rent and fixed occupancy
A19: • Variable travel / delivery costs | E19: • Fixed software / corporate infrastructure
A20: • Transaction fees and other volume-driven costs | E20: • Depreciation, interest and taxes
A23: A USEFUL RULE OF THUMB
A24: Ask: “If this revenue disappeared, which costs would disappear with it?” Those costs are the strongest candidates for direct/variable costs. The goal is not perfect accounting allocation; it is a clear view of the economics of delivering the work.
A29: WHEN THE ANALYSIS RAISES HARDER QUESTIONS
A30: A contribution margin model can show where economic pressure or opportunity is developing. Deciding what to do about it often requires a deeper look at pricing, labor productivity, customer mix, operating decisions, growth alternatives and scenario planning. Cadence & Compass | Disciplined execution. Confident direction.

Sheet Summary
A1: CONTRIBUTION MARGIN SUMMARY
A3: Cadence & Compass | Disciplined execution. Confident direction.
A5: EXECUTIVE SUMMARY
A6: Analysis | B6: =Inputs!B6 -> Example Service Line | D6: BREAK-EVEN
A7: Period | B7: =Inputs!B7 -> Monthly | D7: Fixed Operating Costs ($) | E7: =Inputs!B11 -> 50000
A8: Total Revenue ($) | B8: =Revenue!F27 -> 180000 | D8: CM / Unit ($) | E8: =B13 -> 18.175
A9: Direct Labor ($) | B9: =Headcount!M37 -> 30400 | D9: Break-even Units | E9: =IFERROR(E7/E8,0) -> 2751.031637
A10: Other Variable Costs ($) | B10: ='Variable Costs'!H32 -> 76900 | D10: Break-even Revenue ($) | E10: =E9*IFERROR(Revenue!F27/Revenue!C27,0) -> 123796.4237
A11: Contribution Margin ($) | B11: =B8-B9-B10 -> 72700 | D11: Margin of Safety (Units) | E11: =Revenue!C27-E9 -> 1248.968363
A12: Contribution Margin (%) | B12: =IFERROR(B11/B8,0) -> 0.4038888889
A13: Contribution Margin / Unit ($) | B13: =IFERROR(B11/Revenue!C27,0) -> 18.175
A16: COST MIX
A17: Metric | B17: Amount ($)
A18: Revenue | B18: =B8 -> 180000
A19: Direct Labor | B19: 30400
A20: Other Variable Costs | B20: 76900
A33: WHAT THIS TELLS YOU
A34: Contribution margin shows what remains after the direct labor and other variable costs required to deliver the revenue. That remaining contribution is available to cover fixed overhead, investment, and profit. Use Scenario Analysis to test how changes in volume, pricing, labor productivity, and variable cost inflation affect the economics.

Sheet Inputs
A1: MODEL INPUTS
A3: Cadence & Compass | Disciplined execution. Confident direction.
A5: CORE ASSUMPTIONS
A6: Analysis Name | B6: Example Service Line
A7: Period | B7: Monthly
A8: Volume Unit | B8: Visits / Units
A9: Payroll Tax Rate | B9: 0.12
A10: Default Direct Labor Allocation | B10: 1
A11: Fixed Operating Costs for Break-even | B11: 50000
A12: Notes | B12: Replace blue/yellow cells with your assumptions.
A14: Model logic | B14: Revenue and direct labor are built on supporting tabs. Only headcount classified as Direct is included in contribution margin. Indirect/Admin headcount remains visible for context but is excluded from CM.

Sheet Revenue
A1: REVENUE BUILD
A3: Cadence & Compass | Disciplined execution. Confident direction.
A5: Revenue Stream | B5: Description | C5: Volume / Units | D5: Rate per Unit ($) | E5: Other Revenue ($) | F5: Total Revenue ($) | G5: Revenue / Unit ($) | H5: Notes
A6: Core Service | B6: Primary recurring service | C6: 4000 | D6: 45 | E6: 0 | F6: =C6*D6+E6 -> 180000 | G6: =IFERROR(F6/C6,0) -> 45 | H6: Sample assumptions
A7: Secondary Service | B7: Additional revenue stream | C7: 0 | D7: 0 | E7: 0 | F7: 0 | G7: 0
D8: 0 | E8: 0 | F8: 0 | G8: 0
D9: 0 | E9: 0 | F9: 0 | G9: 0
D10: 0 | E10: 0 | F10: 0 | G10: 0
D11: 0 | E11: 0 | F11: 0 | G11: 0
D12: 0 | E12: 0 | F12: 0 | G12: 0
D13: 0 | E13: 0 | F13: 0 | G13: 0
D14: 0 | E14: 0 | F14: 0 | G14: 0
D15: 0 | E15: 0 | F15: 0 | G15: 0
D16: 0 | E16: 0 | F16: 0 | G16: 0
D17: 0 | E17: 0 | F17: 0 | G17: 0
D18: 0 | E18: 0 | F18: 0 | G18: 0
D19: 0 | E19: 0 | F19: 0 | G19: 0
D20: 0 | E20: 0 | F20: 0 | G20: 0
D21: 0 | E21: 0 | F21: 0 | G21: 0
D22: 0 | E22: 0 | F22: 0 | G22: 0
D23: 0 | E23: 0 | F23: 0 | G23: 0
D24: 0 | E24: 0 | F24: 0 | G24: 0
D25: 0 | E25: 0 | F25: 0 | G25: 0
A27: TOTAL | C27: =SUM(C6:C25) -> 4000 | F27: =SUM(F6:F25) -> 180000 | G27: =IFERROR(F27/C27,0) -> 45

Sheet Headcount
A1: HEADCOUNT & FULLY BURDENED LABOR
A3: Cadence & Compass | Disciplined execution. Confident direction.
A5: Employee / Role | B5: Department | C5: Labor Classification | D5: FTE | E5: Annual Salary ($) | F5: Monthly Benefits ($) | G5: Payroll Tax Rate | H5: Annual Payroll Taxes ($) | I5: Annual Benefits ($) | J5: Fully Burdened Annual Labor ($) | K5: Fully Burdened Monthly Labor ($) | L5: Direct Labor Allocation | M5: CM Direct Labor Cost ($)
A6: Clinician / Delivery Role | B6: Operations | C6: Direct | D6: 4 | E6: 75000 | F6: 600 | G6: =Inputs!$B$9 -> 0.12 | H6: =D6*E6*G6 -> 36000 | I6: =D6*F6*12 -> 28800 | J6: =D6*E6+H6+I6 -> 364800 | K6: =J6/12 -> 30400 | L6: 1 | M6: =IF(C6="Direct",K6*L6,0) -> 30400
A7: Operations Manager | B7: Operations | C7: Indirect / Admin | D7: 1 | E7: 90000 | F7: 700 | G7: =Inputs!$B$9 -> 0.12 | H7: 10800 | I7: 8400 | J7: 109200 | K7: 9100 | L7: 0 | M7: 0
A8: Open Role | C8: Direct | D8: 0 | E8: 0 | F8: 0 | G8: =Inputs!$B$9 -> 0.12 | H8: 0 | I8: 0 | J8: 0 | K8: 0 | L8: 1 | M8: 0
D9: 0 | E9: 0 | F9: 0 | G9: =Inputs!$B$9 -> 0.12 | H9: 0 | I9: 0 | J9: 0 | K9: 0 | L9: 1 | M9: 0
D10: 0 | E10: 0 | F10: 0 | G10: =Inputs!$B$9 -> 0.12 | H10: 0 | I10: 0 | J10: 0 | K10: 0 | L10: 1 | M10: 0
D11: 0 | E11: 0 | F11: 0 | G11: =Inputs!$B$9 -> 0.12 | H11: 0 | I11: 0 | J11: 0 | K11: 0 | L11: 1 | M11: 0
D12: 0 | E12: 0 | F12: 0 | G12: =Inputs!$B$9 -> 0.12 | H12: 0 | I12: 0 | J12: 0 | K12: 0 | L12: 1 | M12: 0
D13: 0 | E13: 0 | F13: 0 | G13: =Inputs!$B$9 -> 0.12 | H13: 0 | I13: 0 | J13: 0 | K13: 0 | L13: 1 | M13: 0
D14: 0 | E14: 0 | F14: 0 | G14: =Inputs!$B$9 -> 0.12 | H14: 0 | I14: 0 | J14: 0 | K14: 0 | L14: 1 | M14: 0
D15: 0 | E15: 0 | F15: 0 | G15: =Inputs!$B$9 -> 0.12 | H15: 0 | I15: 0 | J15: 0 | K15: 0 | L15: 1 | M15: 0
D16: 0 | E16: 0 | F16: 0 | G16: =Inputs!$B$9 -> 0.12 | H16: 0 | I16: 0 | J16: 0 | K16: 0 | L16: 1 | M16: 0
D17: 0 | E17: 0 | F17: 0 | G17: =Inputs!$B$9 -> 0.12 | H17: 0 | I17: 0 | J17: 0 | K17: 0 | L17: 1 | M17: 0
D18: 0 | E18: 0 | F18: 0 | G18: =Inputs!$B$9 -> 0.12 | H18: 0 | I18: 0 | J18: 0 | K18: 0 | L18: 1 | M18: 0
D19: 0 | E19: 0 | F19: 0 | G19: =Inputs!$B$9 -> 0.12 | H19: 0 | I19: 0 | J19: 0 | K19: 0 | L19: 1 | M19: 0
D20: 0 | E20: 0 | F20: 0 | G20: =Inputs!$B$9 -> 0.12 | H20: 0 | I20: 0 | J20: 0 | K20: 0 | L20: 1 | M20: 0
D21: 0 | E21: 0 | F21: 0 | G21: =Inputs!$B$9 -> 0.12 | H21: 0 | I21: 0 | J21: 0 | K21: 0 | L21: 1 | M21: 0
D22: 0 | E22: 0 | F22: 0 | G22: =Inputs!$B$9 -> 0.12 | H22: 0 | I22: 0 | J22: 0 | K22: 0 | L22: 1 | M22: 0
D23: 0 | E23: 0 | F23: 0 | G23: =Inputs!$B$9 -> 0.12 | H23: 0 | I23: 0 | J23: 0 | K23: 0 | L23: 1 | M23: 0
D24: 0 | E24: 0 | F24: 0 | G24: =Inputs!$B$9 -> 0.12 | H24: 0 | I24: 0 | J24: 0 | K24: 0 | L24: 1 | M24: 0
D25: 0 | E25: 0 | F25: 0 | G25: =Inputs!$B$9 -> 0.12 | H25: 0 | I25: 0 | J25: 0 | K25: 0 | L25: 1 | M25: 0
D26: 0 | E26: 0 | F26: 0 | G26: =Inputs!$B$9 -> 0.12 | H26: 0 | I26: 0 | J26: 0 | K26: 0 | L26: 1 | M26: 0
D27: 0 | E27: 0 | F27: 0 | G27: =Inputs!$B$9 -> 0.12 | H27: 0 | I27: 0 | J27: 0 | K27: 0 | L27: 1 | M27: 0
D28: 0 | E28: 0 | F28: 0 | G28: =Inputs!$B$9 -> 0.12 | H28: 0 | I28: 0 | J28: 0 | K28: 0 | L28: 1 | M28: 0
D29: 0 | E29: 0 | F29: 0 | G29: =Inputs!$B$9 -> 0.12 | H29: 0 | I29: 0 | J29: 0 | K29: 0 | L29: 1 | M29: 0
D30: 0 | E30: 0 | F30: 0 | G30: =Inputs!$B$9 -> 0.12 | H30: 0 | I30: 0 | J30: 0 | K30: 0 | L30: 1 | M30: 0
D31: 0 | E31: 0 | F31: 0 | G31: =Inputs!$B$9 -> 0.12 | H31: 0 | I31: 0 | J31: 0 | K31: 0 | L31: 1 | M31: 0
D32: 0 | E32: 0 | F32: 0 | G32: =Inputs!$B$9 -> 0.12 | H32: 0 | I32: 0 | J32: 0 | K32: 0 | L32: 1 | M32: 0
D33: 0 | E33: 0 | F33: 0 | G33: =Inputs!$B$9 -> 0.12 | H33: 0 | I33: 0 | J33: 0 | K33: 0 | L33: 1 | M33: 0
D34: 0 | E34: 0 | F34: 0 | G34: =Inputs!$B$9 -> 0.12 | H34: 0 | I34: 0 | J34: 0 | K34: 0 | L34: 1 | M34: 0
D35: 0 | E35: 0 | F35: 0 | G35: =Inputs!$B$9 -> 0.12 | H35: 0 | I35: 0 | J35: 0 | K35: 0 | L35: 1 | M35: 0
A37: TOTAL | J37: =SUM(J6:J35) -> 474000 | K37: 39500 | M37: =SUM(M6:M35) -> 30400

Sheet Variable Costs
A1: VARIABLE COSTS
A3: Cadence & Compass | Disciplined execution. Confident direction.
A5: Cost Category | B5: Description | C5: Cost Driver | D5: Units / Base | E5: Cost per Unit ($) | F5: % of Revenue | G5: Manual Amount ($) | H5: Total Variable Cost ($) | I5: Notes
A6: Supplies | B6: Consumables used to deliver service | C6: Per Unit | D6: 4000 | E6: 4.5 | F6: 0 | G6: 0 | H6: =IF(C6="Per Unit",D6*E6,IF(C6="% of Revenue",Revenue!$F$27*F6,IF(C6="Manual Amount",G6,0))) -> 18000
A7: Travel / Mileage | B7: Variable delivery/travel cost | C7: Per Unit | D7: 4000 | E7: 2.35 | F7: 0 | G7: 0 | H7: =IF(C7="Per Unit",D7*E7,IF(C7="% of Revenue",Revenue!$F$27*F7,IF(C7="Manual Amount",G7,0))) -> 9400
A8: Transaction Fees | B8: Merchant or transaction costs | C8: % of Revenue | D8: =IF(C8="Per Unit",Revenue!$C$27,0) -> 0 | E8: 0 | F8: 0.025 | G8: 0 | H8: =IF(C8="Per Unit",D8*E8,IF(C8="% of Revenue",Revenue!$F$27*F8,IF(C8="Manual Amount",G8,0))) -> 4500
A9: Other | B9: Other direct variable costs | C9: Manual Amount | D9: =IF(C9="Per Unit",Revenue!$C$27,0) -> 0 | E9: 0 | F9: 0 | G9: 45000 | H9: =IF(C9="Per Unit",D9*E9,IF(C9="% of Revenue",Revenue!$F$27*F9,IF(C9="Manual Amount",G9,0))) -> 45000
D10: =IF(C10="Per Unit",Revenue!$C$27,0) -> 0 | E10: 0 | F10: 0 | G10: 0 | H10: =IF(C10="Per Unit",D10*E10,IF(C10="% of Revenue",Revenue!$F$27*F10,IF(C10="Manual Amount",G10,0))) -> 0
D11: =IF(C11="Per Unit",Revenue!$C$27,0) -> 0 | E11: 0 | F11: 0 | G11: 0 | H11: =IF(C11="Per Unit",D11*E11,IF(C11="% of Revenue",Revenue!$F$27*F11,IF(C11="Manual Amount",G11,0))) -> 0
D12: =IF(C12="Per Unit",Revenue!$C$27,0) -> 0 | E12: 0 | F12: 0 | G12: 0 | H12: =IF(C12="Per Unit",D12*E12,IF(C12="% of Revenue",Revenue!$F$27*F12,IF(C12="Manual Amount",G12,0))) -> 0
D13: =IF(C13="Per Unit",Revenue!$C$27,0) -> 0 | E13: 0 | F13: 0 | G13: 0 | H13: =IF(C13="Per Unit",D13*E13,IF(C13="% of Revenue",Revenue!$F$27*F13,IF(C13="Manual Amount",G13,0))) -> 0
D14: =IF(C14="Per Unit",Revenue!$C$27,0) -> 0 | E14: 0 | F14: 0 | G14: 0 | H14: =IF(C14="Per Unit",D14*E14,IF(C14="% of Revenue",Revenue!$F$27*F14,IF(C14="Manual Amount",G14,0))) -> 0
D15: =IF(C15="Per Unit",Revenue!$C$27,0) -> 0 | E15: 0 | F15: 0 | G15: 0 | H15: =IF(C15="Per Unit",D15*E15,IF(C15="% of Revenue",Revenue!$F$27*F15,IF(C15="Manual Amount",G15,0))) -> 0
D16: =IF(C16="Per Unit",Revenue!$C$27,0) -> 0 | E16: 0 | F16: 0 | G16: 0 | H16: =IF(C16="Per Unit",D16*E16,IF(C16="% of Revenue",Revenue!$F$27*F16,IF(C16="Manual Amount",G16,0))) -> 0
D17: =IF(C17="Per Unit",Revenue!$C$27,0) -> 0 | E17: 0 | F17: 0 | G17: 0 | H17: =IF(C17="Per Unit",D17*E17,IF(C17="% of Revenue",Revenue!$F$27*F17,IF(C17="Manual Amount",G17,0))) -> 0
D18: =IF(C18="Per Unit",Revenue!$C$27,0) -> 0 | E18: 0 | F18: 0 | G18: 0 | H18: =IF(C18="Per Unit",D18*E18,IF(C18="% of Revenue",Revenue!$F$27*F18,IF(C18="Manual Amount",G18,0))) -> 0
D19: =IF(C19="Per Unit",Revenue!$C$27,0) -> 0 | E19: 0 | F19: 0 | G19: 0 | H19: =IF(C19="Per Unit",D19*E19,IF(C19="% of Revenue",Revenue!$F$27*F19,IF(C19="Manual Amount",G19,0))) -> 0
D20: =IF(C20="Per Unit",Revenue!$C$27,0) -> 0 | E20: 0 | F20: 0 | G20: 0 | H20: =IF(C20="Per Unit",D20*E20,IF(C20="% of Revenue",Revenue!$F$27*F20,IF(C20="Manual Amount",G20,0))) -> 0
D21: =IF(C21="Per Unit",Revenue!$C$27,0) -> 0 | E21: 0 | F21: 0 | G21: 0 | H21: =IF(C21="Per Unit",D21*E21,IF(C21="% of Revenue",Revenue!$F$27*F21,IF(C21="Manual Amount",G21,0))) -> 0
D22: =IF(C22="Per Unit",Revenue!$C$27,0) -> 0 | E22: 0 | F22: 0 | G22: 0 | H22: =IF(C22="Per Unit",D22*E22,IF(C22="% of Revenue",Revenue!$F$27*F22,IF(C22="Manual Amount",G22,0))) -> 0
D23: =IF(C23="Per Unit",Revenue!$C$27,0) -> 0 | E23: 0 | F23: 0 | G23: 0 | H23: =IF(C23="Per Unit",D23*E23,IF(C23="% of Revenue",Revenue!$F$27*F23,IF(C23="Manual Amount",G23,0))) -> 0
D24: =IF(C24="Per Unit",Revenue!$C$27,0) -> 0 | E24: 0 | F24: 0 | G24: 0 | H24: =IF(C24="Per Unit",D24*E24,IF(C24="% of Revenue",Revenue!$F$27*F24,IF(C24="Manual Amount",G24,0))) -> 0
D25: =IF(C25="Per Unit",Revenue!$C$27,0) -> 0 | E25: 0 | F25: 0 | G25: 0 | H25: =IF(C25="Per Unit",D25*E25,IF(C25="% of Revenue",Revenue!$F$27*F25,IF(C25="Manual Amount",G25,0))) -> 0
D26: =IF(C26="Per Unit",Revenue!$C$27,0) -> 0 | E26: 0 | F26: 0 | G26: 0 | H26: =IF(C26="Per Unit",D26*E26,IF(C26="% of Revenue",Revenue!$F$27*F26,IF(C26="Manual Amount",G26,0))) -> 0
D27: =IF(C27="Per Unit",Revenue!$C$27,0) -> 0 | E27: 0 | F27: 0 | G27: 0 | H27: =IF(C27="Per Unit",D27*E27,IF(C27="% of Revenue",Revenue!$F$27*F27,IF(C27="Manual Amount",G27,0))) -> 0
D28: =IF(C28="Per Unit",Revenue!$C$27,0) -> 0 | E28: 0 | F28: 0 | G28: 0 | H28: =IF(C28="Per Unit",D28*E28,IF(C28="% of Revenue",Revenue!$F$27*F28,IF(C28="Manual Amount",G28,0))) -> 0
D29: =IF(C29="Per Unit",Revenue!$C$27,0) -> 0 | E29: 0 | F29: 0 | G29: 0 | H29: =IF(C29="Per Unit",D29*E29,IF(C29="% of Revenue",Revenue!$F$27*F29,IF(C29="Manual Amount",G29,0))) -> 0
D30: =IF(C30="Per Unit",Revenue!$C$27,0) -> 0 | E30: 0 | F30: 0 | G30: 0 | H30: =IF(C30="Per Unit",D30*E30,IF(C30="% of Revenue",Revenue!$F$27*F30,IF(C30="Manual Amount",G30,0))) -> 0
A32: TOTAL VARIABLE COSTS | H32: =SUM(H6:H30) -> 76900

Sheet Scenario Analysis
A1: SCENARIO ANALYSIS
A3: Cadence & Compass | Disciplined execution. Confident direction.
A5: Scenario | B5: Volume Change | C5: Pricing Change | D5: Direct Labor Productivity Change | E5: Variable Cost Inflation | F5: Revenue ($) | G5: Contribution Margin ($) | H5: Contribution Margin (%) | I5: Scenario | J5: CM ($)
A6: Downside | B6: -0.1 | C6: -0.05 | D6: -0.05 | E6: 0.05 | F6: =Revenue!$F$27*(1+B6)*(1+C6) -> 153900 | G6: =F6-(Headcount!$M$37*(1+B6)/(1+D6))-('Variable Costs'!$H$32*(1+B6)*(1+E6)) -> 52429.5 | H6: =IFERROR(G6/F6,0) -> 0.3406725146 | I6: Downside | J6: =G6 -> 52429.5
A7: Base | B7: 0 | C7: 0 | D7: 0 | E7: 0 | F7: =Revenue!$F$27*(1+B7)*(1+C7) -> 180000 | G7: =F7-(Headcount!$M$37*(1+B7)/(1+D7))-('Variable Costs'!$H$32*(1+B7)*(1+E7)) -> 72700 | H7: 0.4038888889 | I7: Base | J7: 72700
A8: Upside | B8: 0.1 | C8: 0.03 | D8: 0.05 | E8: -0.02 | F8: =Revenue!$F$27*(1+B8)*(1+C8) -> 203940 | G8: =F8-(Headcount!$M$37*(1+B8)/(1+D8))-('Variable Costs'!$H$32*(1+B8)*(1+E8)) -> 89194.18095 | H8: 0.437355011 | I8: Upside | J8: 89194.18095
A11: Scenario assumptions are intentionally simple. Volume and pricing adjust revenue; direct labor scales with volume and is modified by productivity; other variable costs scale with volume and the inflation assumption. The free version is designed for directional decision support rather than a full operating forecast.
